Workbook

Sheet паспорт
A1: ПАТ "УКРТРАНСГАЗ" | G1: ПАСПОРТ ФІЗИКО-ХІМІЧНИХ ПОКАЗНИКІВ ПРИРОДНОГО ГАЗУ № 607
A2: Філія "УМГ "ХАРКІВТРАНСГАЗ" | G2: переданого Запорізьким ЛВУМГ та прийнятого ПАТ "Дніпрогаз", ПАТ "Дніпропетровськгаз"
A3: Краснопільський п/м Запорізького ЛВУМГ | G3: Маршрут № 607
A4: Вимірювальна хіміко-аналітична лабораторія
A5: Свідоцтво № ПЧ 07-0/1548-2015 чинне до 10.06.2018р. | K5: по газопроводу ШДО-1а, ШДО-1б, ШДО-2, ШДКРІ | V5: за період з | X5: 2017-05-01 | Z5: по | AA5: 2017-05-31
A7: Число місяця | B7: Компонентний склад, % мол. | N7: Фізико-хімічні показники газу обчислені на основі компонентного складу, 101,325 кПа | X7: Температура точки роси за вологою (Р = 3.92 МПа), ºС | Y7: Температура точки роси за вуглеводнями, ºС | Z7: Вміст сірководню, г/м3 | AA7: Вміст меркаптанової сірки, г/м3 | AB7: Вміст механічних домішок, г/м3
N8: Густина абсолютна, кг/м3,при 20 ºС, | O8: Температура вимірювання/згоряння при 20/25°С
B9: метан, С1 | C9: етан, С2 | D9: пропан, С3 | E9: ізо-бутан, і-С4 | F9: н-бутан, н-С4 | G9: нео-пентан, нео-С5 | H9: ізо-пентан, і-С5 | I9: н-пентан, н-С5 | J9: гексани та вищі, С6+ | K9: кисень, О2 | L9: азот, N2 | M9: діоксид вуглецю, CО2 | O9: Теплота згоряння нижча | R9: Теплота згоряння вища | U9: Число Воббе вище
O10: ккал/м3 | P10: МДж/м3 | Q10: кВт⋅год/м3 | R10: ккал/м3 | S10: МДж/м3 | T10: кВт⋅год/м3 | U10: ккал/м3 | V10: МДж/м3 | W10: кВт⋅год/м3
A11: 1 | O11: =P11*238.8459 -> 8226.019988 | P11: 34.4407 | Q11: =P11/3.6 -> 9.566861111 | R11: =S11*238.8459 -> 9115.864273 | S11: 38.1663 | T11: =S11/3.6 -> 10.60175 | U11: =V11*238.8459 -> 11917.3356 | V11: 49.8955 | W11: =V11/3.6 -> 13.85986111 | AC11: =SUM(B11:M11)+$K$42+$N$42 -> 0
A12: 2 | O12: =P12*238.8459 -> 8226.019988 | P12: 34.4407 | Q12: 9.566861111 | R12: =S12*238.8459 -> 9115.864273 | S12: 38.1663 | T12: 10.60175 | U12: =V12*238.8459 -> 11917.3356 | V12: 49.8955 | W12: 13.85986111 | AC12: 0
A13: 3 | B13: 94.7068 | C13: 2.8685 | D13: 0.9216 | E13: 0.139 | F13: 0.1568 | G13: 0.0067 | H13: 0.0337 | I13: 0.0251 | J13: 0.0413 | K13: 0.0089 | L13: 0.8365 | M13: 0.2551 | N13: 0.711 | O13: 8273.836937 | P13: 34.6409 | Q13: 9.622472222 | R13: 9166.690681 | S13: 38.3791 | T13: 10.66086111 | U13: 11930.80651 | V13: 49.9519 | W13: 13.87552778 | X13: -10.1 | Y13: -1.4 | AC13: 100 | AD13: =IF(AC13=100,"ОК"," ") -> ОК
A14: 4 | B14: 94.2523 | C14: 3.1011 | D14: 1.063 | E14: 0.157 | F14: 0.1927 | G14: 0.0048 | H14: 0.0427 | I14: 0.0325 | J14: 0.0481 | K14: 0.0084 | L14: 0.8224 | M14: 0.2751 | N14: 0.7157 | O14: 8321.15231 | P14: 34.839 | Q14: 9.6775 | R14: 9217.373781 | S14: 38.5913 | T14: 10.71980556 | U14: 11957.50948 | V14: 50.0637 | W14: 13.90658333 | X14: -9.6 | Y14: -5 | AB14: відсутні | AC14: 100.0001 | AD14: =IF(AC14=100,"ОК"," ") -> 
A15: 5 | B15: 94.0244 | C15: 3.2333 | D15: 1.1365 | E15: 0.1663 | F15: 0.2112 | G15: 0.0041 | H15: 0.047 | I15: 0.0372 | J15: 0.0437 | K15: 0.0087 | L15: 0.8009 | M15: 0.2867 | N15: 0.7179 | O15: 8345.204092 | P15: 34.9397 | Q15: 9.705472222 | R15: 9243.145253 | S15: 38.6992 | T15: 10.74977778 | U15: 11972.34181 | V15: 50.1258 | W15: 13.92383333 | X15: -9.6 | Y15: 0.7 | AC15: 100 | AD15: ОК
A16: 6 | O16: 8345.204092 | P16: 34.9397 | Q16: 9.705472222 | R16: 9243.145253 | S16: 38.6992 | T16: 10.74977778 | U16: 11972.34181 | V16: 50.1258 | W16: 13.92383333 | AC16: 0
A17: 7 | O17: 8345.204092 | P17: 34.9397 | Q17: 9.705472222 | R17: 9243.145253 | S17: 38.6992 | T17: 10.74977778 | U17: 11972.34181 | V17: 50.1258 | W17: 13.92383333 | AC17: 0
A18: 8 | O18: =P18*238.8459 -> 8345.204092 | P18: 34.9397 | Q18: =P18/3.6 -> 9.705472222 | R18: =S18*238.8459 -> 9243.145253 | S18: 38.6992 | T18: 10.74977778 | U18: =V18*238.8459 -> 11972.34181 | V18: 50.1258 | W18: =V18/3.6 -> 13.92383333 | AC18: 0
A19: 9 | O19: =P19*238.8459 -> 8345.204092 | P19: 34.9397 | Q19: =P19/3.6 -> 9.705472222 | R19: =S19*238.8459 -> 9243.145253 | S19: 38.6992 | T19: 10.74977778 | U19: =V19*238.8459 -> 11972.34181 | V19: 50.1258 | W19: =V19/3.6 -> 13.92383333 | AC19: 0
A20: 10 | B20: 93.6172 | C20: 3.3756 | D20: 1.2571 | E20: 0.1856 | F20: 0.2564 | G20: 0.0043 | H20: 0.0613 | I20: 0.05 | J20: 0.0599 | K20: 0.0086 | L20: 0.8318 | M20: 0.2922 | N20: 0.7226 | O20: 8389.89216 | P20: 35.1268 | Q20: 9.757444444 | R20: 9290.914433 | S20: 38.8992 | T20: 10.80533333 | U20: 11994.81721 | V20: 50.2199 | W20: 13.94997222 | X20: -10.7 | Y20: -0.3 | Z20: 0.0001 | AA20: 0.0027 | AC20: 100 | AD20: ОК
A21: 11 | B21: 93.6644 | C21: 3.3538 | D21: 1.2404 | E21: 0.1826 | F21: 0.2513 | G21: 0.0044 | H21: 0.0602 | I21: 0.0495 | J21: 0.0667 | K21: 0.008 | L21: 0.8284 | M21: 0.2902 | N21: 0.7223 | O21: 8387.145432 | P21: 35.1153 | Q21: 9.75425 | R21: 9287.976629 | S21: 38.8869 | T21: 10.80191667 | U21: 11993.9096 | V21: 50.2161 | W21: 13.94891667 | X21: -10.3 | Y21: -0.5 | AC21: 99.9999
A22: 12 | B22: 93.6527 | C22: 3.3262 | D22: 1.2384 | E22: 0.182 | F22: 0.2562 | G22: 0.0044 | H22: 0.0635 | I22: 0.0524 | J22: 0.0696 | K22: 0.0089 | L22: 0.8653 | M22: 0.2805 | N22: 0.7225 | O22: 8386.118395 | P22: 35.111 | Q22: 9.753055556 | R22: 9286.806284 | S22: 38.882 | T22: 10.80055556 | U22: 11990.78072 | V22: 50.203 | W22: 13.94527778 | X22: -9.9 | Y22: -1.2 | AC22: 100.0001
A23: 13 | B23: 93.8703 | C23: 3.1641 | D23: 1.1852 | E23: 0.173 | F23: 0.2491 | G23: 0.0043 | H23: 0.0628 | I23: 0.0517 | J23: 0.0682 | K23: 0.0096 | L23: 0.9 | M23: 0.2616 | N23: 0.7205 | O23: 8364.28788 | P23: 35.0196 | Q23: 9.727666667 | R23: 9263.375501 | S23: 38.7839 | T23: 10.77330556 | U23: 11976.90377 | V23: 50.1449 | W23: 13.92913889 | X23: -9.3 | Y23: -1.1 | AC23: 99.9999
A24: 14 | O24: 8364.28788 | P24: 35.0196 | Q24: 9.727666667 | R24: 9263.375501 | S24: 38.7839 | T24: 10.77330556 | U24: 11976.90377 | V24: 50.1449 | W24: 13.92913889 | AC24: 0
A25: 15 | B25: 93.8238 | C25: 3.1616 | D25: 1.1897 | E25: 0.1723 | F25: 0.2529 | G25: 0.0044 | H25: 0.0659 | I25: 0.054 | J25: 0.0662 | K25: 0.0097 | L25: 0.9347 | M25: 0.2649 | N25: 0.7209 | O25: 8362.902573 | P25: 35.0138 | Q25: 9.726055556 | R25: 9261.751349 | S25: 38.7771 | T25: 10.77141667 | U25: 11971.7447 | V25: 50.1233 | W25: 13.92313889 | X25: -10.3 | Y25: -1.6 | AC25: 100.0001
A26: 16 | B26: 93.9538 | C26: 3.114 | D26: 1.1548 | E26: 0.168 | F26: 0.2406 | G26: 0.0043 | H26: 0.0626 | I26: 0.0504 | J26: 0.0686 | K26: 0.0099 | L26: 0.9154 | M26: 0.2576 | N26: 0.7196 | O26: 8353.659237 | P26: 34.9751 | Q26: 9.715305556 | R26: 9251.934782 | S26: 38.736 | T26: 10.76 | U26: 11969.47566 | V26: 50.1138 | W26: 13.9205 | X26: -9.2 | Y26: -0.6 | AC26: 100 | AD26: ОК
A27: 17 | B27: 94.0008 | C27: 3.1259 | D27: 1.1446 | E27: 0.1682 | F27: 0.2335 | G27: 0.0043 | H27: 0.0591 | I27: 0.0482 | J27: 0.0605 | K27: 0.0092 | L27: 0.8791 | M27: 0.2668 | N27: 0.719 | O27: 8350.148202 | P27: 34.9604 | Q27: 9.711222222 | R27: 9248.28044 | S27: 38.7207 | T27: 10.75575 | U27: 11969.92947 | V27: 50.1157 | W27: 13.92102778 | X27: -9 | Y27: -0.8 | AB27: відсутні | AC27: 100.0002
A28: 18 | B28: 94.0197 | C28: 3.1335 | D28: 1.1372 | E28: 0.1674 | F28: 0.2289 | G28: 0.0041 | H28: 0.0592 | I28: 0.0477 | J28: 0.0581 | K28: 0.0106 | L28: 0.868 | M28: 0.2655 | N28: 0.7187 | O28: 8348.762896 | P28: 34.9546 | Q28: 9.709611111 | R28: 9246.82348 | S28: 38.7146 | T28: 10.75405556 | U28: 11970.33551 | V28: 50.1174 | W28: 13.9215 | X28: -8.9 | Y28: -1.2 | AC28: 99.9999
A29: 19 | B29: 94.3627 | C29: 2.9914 | D29: 1.0478 | E29: 0.1558 | F29: 0.2012 | G29: 0.0041 | H29: 0.0494 | I29: 0.0396 | J29: 0.056 | K29: 0.0101 | L29: 0.8218 | M29: 0.2601 | N29: 0.7154 | O29: 8320.555195 | P29: 34.8365 | Q29: 9.676805556 | R29: 9216.776666 | S29: 38.5888 | T29: 10.71911111 | U29: 11959.42025 | V29: 50.0717 | W29: 13.90880556 | X29: -8.7 | Y29: -1 | AC29: 100 | AD29: ОК
A30: 20 | O30: 8320.555195 | P30: 34.8365 | Q30: 9.676805556 | R30: 9216.776666 | S30: 38.5888 | T30: 10.71911111 | U30: 11959.42025 | V30: 50.0717 | W30: 13.90880556 | AC30: 0 | AD30: =IF(AC30=100,"ОК"," ") -> 
A31: 21 | O31: 8320.555195 | P31: 34.8365 | Q31: 9.676805556 | R31: 9216.776666 | S31: 38.5888 | T31: 10.71911111 | U31: 11959.42025 | V31: 50.0717 | W31: 13.90880556 | AC31: 0
A32: 22 | B32: 94.0085 | C32: 3.1825 | D32: 1.1395 | E32: 0.1678 | F32: 0.2241 | G32: 0.0043 | H32: 0.0553 | I32: 0.0446 | J32: 0.0569 | K32: 0.01 | L32: 0.8344 | M32: 0.2723 | N32: 0.7187 | O32: 8351.414086 | P32: 34.9657 | Q32: 9.712694444 | R32: 9249.7374 | S32: 38.7268 | T32: 10.75744444 | U32: 11974.58697 | V32: 50.1352 | W32: 13.92644444 | X32: -8.5 | Y32: -2.2 | AC32: 100.0002
A33: 23 | B33: 93.974 | C33: 3.2178 | D33: 1.1586 | E33: 0.173 | F33: 0.2299 | G33: 0.0042 | H33: 0.0569 | I33: 0.0464 | J33: 0.0551 | K33: 0.0095 | L33: 0.8018 | M33: 0.2728 | N33: 0.7192 | O33: 8360.896268 | P33: 35.0054 | Q33: 9.723722222 | R33: 9260.007774 | S33: 38.7698 | T33: 10.76938889 | U33: 11983.75865 | V33: 50.1736 | W33: 13.93711111 | X33: -8.4 | Y33: -2.3 | Z33: <0,0001 | AA33: 0.0032 | AC33: 100 | AD33: =IF(AC33=100,"ОК"," ") -> ОК
A34: 24 | B34: 94.0024 | C34: 3.2264 | D34: 1.1484 | E34: 0.172 | F34: 0.2234 | G34: 0.0041 | H34: 0.0547 | I34: 0.0443 | J34: 0.0571 | K34: 0.0106 | L34: 0.7876 | M34: 0.269 | N34: 0.7188 | O34: =P34*238.8459 -> 8359.654269 | P34: 35.0002 | Q34: =P34/3.6 -> 9.722277778 | R34: =S34*238.8459 -> 9258.741891 | S34: 38.7645 | T34: 10.76791667 | U34: =V34*238.8459 -> 11985.04842 | V34: 50.179 | W34: =V34/3.6 -> 13.93861111 | X34: -7.4 | Y34: 0.2 | AC34: 100 | AD34: ОК
A35: 25 | B35: 93.9955 | C35: 3.2072 | D35: 1.1604 | E35: 0.1729 | F35: 0.2292 | G35: 0.0041 | H35: 0.0571 | I35: 0.0466 | J35: 0.0554 | K35: 0.0099 | L35: 0.7952 | M35: 0.2665 | N35: 0.719 | O35: =P35*238.8459 -> 8361.493383 | P35: 35.0079 | Q35: =P35/3.6 -> 9.724416667 | R35: =S35*238.8459 -> 9260.676542 | S35: 38.7726 | T35: 10.77016667 | U35: =V35*238.8459 -> 11985.81272 | V35: 50.1822 | W35: =V35/3.6 -> 13.9395 | X35: -7.4 | Y35: 1.4 | AC35: 100 | AD35: ОК
A36: 26 | B36: 93.9497 | C36: 3.2346 | D36: 1.1673 | E36: 0.1739 | F36: 0.2315 | G36: 0.0057 | H36: 0.0576 | I36: 0.0462 | J36: 0.0616 | K36: 0.0106 | L36: 0.795 | M36: 0.2663 | N36: 0.7195 | O36: 8366.962954 | P36: 35.0308 | Q36: 9.730777778 | R36: 9266.528267 | S36: 38.7971 | T36: 10.77697222 | U36: 11989.03714 | V36: 50.1957 | W36: 13.94325 | X36: -7 | Y36: 1.2 | AC36: 100 | AD36: ОК
A37: 27 | O37: 8366.962954 | P37: 35.0308 | Q37: 9.730777778 | R37: 9266.528267 | S37: 38.7971 | T37: 10.77697222 | U37: 11989.03714 | V37: 50.1957 | W37: 13.94325 | AC37: 0
A38: 28 | O38: 8366.962954 | P38: 35.0308 | Q38: 9.730777778 | R38: 9266.528267 | S38: 38.7971 | T38: 10.77697222 | U38: 11989.03714 | V38: 50.1957 | W38: 13.94325 | AC38: 0
A39: 29 | B39: 93.9233 | C39: 3.2608 | D39: 1.1723 | E39: 0.1738 | F39: 0.2299 | G39: 0.0043 | H39: 0.0564 | I39: 0.0457 | J39: 0.0542 | K39: 0.0115 | L39: 0.7961 | M39: 0.2716 | N39: 0.7195 | O39: 8365.291032 | P39: 35.0238 | Q39: 9.728833333 | R39: 9264.713038 | S39: 38.7895 | T39: 10.77486111 | U39: 11985.28726 | V39: 50.18 | W39: 13.93888889 | X39: -6.9 | Y39: 3.3 | AC39: 99.9999
A40: 30 | B40: 94.7133 | C40: 2.9147 | D40: 0.9844 | E40: 0.1508 | F40: 0.1704 | G40: 0.0044 | H40: 0.0371 | I40: 0.0278 | J40: 0.0296 | K40: 0.0108 | L40: 0.7087 | M40: 0.248 | N40: 0.7115 | O40: 8297.172182 | P40: 34.7386 | Q40: 9.649611111 | R40: 9192.103884 | S40: 38.4855 | T40: 10.69041667 | U40: 11959.70687 | V40: 50.0729 | W40: 13.90913889 | X40: -5.7 | Y40: 1.8 | AC40: 100 | AD40: ОК
A41: 31 | B41: 94.9303 | C41: 2.7899 | D41: 0.938 | E41: 0.1439 | F41: 0.1608 | G41: 0.0044 | H41: 0.0338 | I41: 0.0254 | J41: 0.0277 | K41: 0.0101 | L41: 0.7047 | M41: 0.231 | N41: 0.7095 | O41: 8280.261892 | P41: 34.6678 | Q41: 9.629944444 | R41: 9174.047134 | S41: 38.4099 | T41: 10.66941667 | U41: 11952.87587 | V41: 50.0443 | W41: 13.90119444 | X41: -8.4 | Y41: 0.5 | AC41: 100 | AD41: ОК
A42: Рівень одоризації відповідає чинним нормативним документам | O42: 8338.442369 | P42: 34.91139002 | Q42: 9.697608339 | R42: 9235.921316 | S42: 38.66895482 | T42: 10.74137634
H43: Середньозважене значення теплоти згоряння:
B46: Начальник управління Запорізького ЛВУМГ Дереновський О.Б.
C47: Підрозділу підприємства, якому підпорядкована лабораторія | O47: прізвище | S47: підпис | V47: дата
B48: Завідувач лабораторії Шеремет В.Л.
C49: Лабораторія, де здійснювалось вимірювання газу | O49: прізвище | S49: підпис | V49: дата
B50: Інженер провідний дільниці служби ГВ та М Свинаренко Р.В.
C51: Підрозділу, відповідального за облік газу за маршрутом | O51: прізвище | S51: підпис | V51: дата

Sheet додаток
A2: Додаток до Паспорту фізико-хімічних показників природного газу № 607
A4: Область | B4: ГРС, прямий споживач | C4: Cередньозважене значення вищої теплоти згоряння
C5: МДж/м³ | D5: ккал/м³ | E5: кВт*год./м³
A6: Дніпропетровська область | B6: ГРС п/ф " За мир" с.Краснопілля | C6: 38.68242232 | D6: 9239.137973 | E6: 10.74511731
B7: ГРС с. Попасне | C7: 38.68035317 | D7: 9238.643766 | E7: 10.74454255
B8: ГРС с. Вербки | C8: 38.68354719 | D8: 9239.406644 | E8: 10.74542978
B9: ГРС м. Тернівка | C9: 38.6786079 | D9: 9238.226914 | E9: 10.74405775
B10: ГРС смт.Петропавлівка | C10: 38.67942753 | D10: 9238.422681 | E10: 10.74428543
B11: ГРС смт. Водолазьке | C11: 38.68617973 | D11: 9240.035415 | E11: 10.74616104
B12: ГРС смт. Межова | C12: 38.68971697 | D12: 9240.880272 | E12: 10.7471436
B13: ГРС м. Павлоград | C13: 38.67656238 | D13: 9237.738351 | E13: 10.74348955
B14: ГРС с. Булахівка(р-п Україна) | C14: 38.68387242 | D14: 9239.484323 | E14: 10.74552012
B15: ГРС с. Октябрьське (Енгельса) | C15: 38.68180004 | D15: 9238.989343 | E15: 10.74494445
B16: ГРС смт. Синельникове | C16: 38.68411732 | D16: 9239.542817 | E16: 10.74558814
B17: ГРС. c. Катеринівка | C17: 38.6826028 | D17: 9239.18108 | E17: 10.74516744
B18: ГРС смт. Васильківка | C18: 38.68208764 | D18: 9239.058037 | E18: 10.74502435
B19: ГРС с. Романки (к-п Победа) | C19: 38.68106528 | D19: 9238.813849 | E19: 10.74474035
B20: ГРС с. Покровка | C20: 38.68572888 | D20: 9239.927731 | E20: 10.7460358
B21: ГРС смт.Просяна | C21: 38.6829775 | D21: 9239.270576 | E21: 10.74527153
B22: ГРС смт. Славгород
B23: ГРС с. Варварівка | C23: 38.68042588 | D23: 9238.661131 | E23: 10.74456274
B24: ГРС-1 м. Новомосковськ | C24: 38.68974172 | D24: 9240.886182 | E24: 10.74715048
B25: ГРС с. Любимівка | C25: 38.6808686 | D25: 9238.766873 | E25: 10.74468572
B26: ГРС смт. Солоне | C26: 38.6861172 | D26: 9240.020481 | E26: 10.74614367
B27: ГРС с. Володимирівка | C27: 38.68160265 | D27: 9238.942198 | E27: 10.74488962
B28: ГРС смт.Томаківка | C28: 38.6733403 | D28: 9236.968771 | E28: 10.74259453
B29: ГРС Аеропорт | C29: 0 | D29: 0 | E29: 0
B30: ГРС 6 м. Дніпро | C30: 0 | D30: 0 | E30: 0
B31: ГРС Придніпровська | C31: 38.72345163 | D31: 9248.937657 | E31: 10.75651434
B32: ГРС Красноармійська | C32: 38.6818807 | D32: 9239.008608 | E32: 10.74496686
B33: ГРС с. Юр'ївка (Павлоградська КС) | C33: 38.68739843 | D33: 9240.326498 | E33: 10.74649956
B34: ГРС 7 м. Дніпро | C34: 38.68707393 | D34: 9240.248991 | E34: 10.74640942
B35: ПАТ "Інтерпайп Новомосковський трубний завод" | C35: 38.70022021 | D35: 9243.388925 | E35: 10.75006117
B36: РВУ "Харківавтогаз" | C36: 38.671782 | D36: 9236.596576 | E36: 10.74216167
B37: ДП "ВО ПМЗ ім. О.М. Макарова" | C37: 0 | D37: 0 | E37: 0
A38: Середньозважене значення вищої теплоти згоряння по маршруту № 607 | C38: 38.66895482 | D38: 9235.921316 | E38: 10.74137634
A42: Начальник управління Запорізького ЛВУМГ Дереновський О.Б.
A43: Підрозділу підприємства, якому підпорядкована лабораторія | D43: прізвище | E43: підпис | F43: дата
A45: Завідувач лабораторії Шеремет В.Л.
A46: Лабораторія, де здійснювалось вимірювання газу | D46: прізвище | E46: підпис | F46: дата
A48: Інженер провідний дільниці служби ГВ та М Свинаренко Р.В.
A49: Підрозділу, відповідального за облік газу за маршрутом | D49: прізвище | E49: підпис | F49: дата

Sheet variablesList (hidden)
A1: 3 | B1: x:\gaysin | C1: 10, 11, 24, 25, 127, 128, 132, 180, 207, 215 | D1: x:\
B2: x:\Illinci
B3: x:\Talne

Sheet Лист1
A1: Данные по объекту з-д Петровского (осн.) за 5/17. | J1: Данные по объекту Город (осн.) за 5/17. | Q1: Данные по объекту завод Н-ск 1 (осн.) за 5/17. | W1: Данные по объекту АГНКС ГРС-6 (осн.) за 5/17.
A2: День | B2: V, м3 | C2: dP, кгс/м2 | D2: Pабс, кгс/см2 | E2: T, °C | F2: ABC | J2: День | K2: V, м3 | L2: dP, кгс/м2 | M2: Pабс, кгс/см2 | N2: T, °C | O2: ABC | Q2: День | R2: V, м3 | S2: dP, кгс/м2 | T2: Pабс, кгс/см2 | U2: T, °C | V2: ABC | W2: День | X2: V, м3 | Y2: dP, кгс/м2 | Z2: Pабс, кгс/см2 | AA2: T, °C | AB2: ABC
A3: 1 | B3: 85698.65 | C3: 96152.96 | D3: =SUM(B3:C3) -> 181851.61 | J3: 1 | K3: 96152.96 | L3: 108.864 | M3: 5.12 | N3: -5.03 | O3: A | Q3: 1 | R3: 684.67 | S3: 15.824 | T3: 3.03 | U3: 21.83 | V3: A | W3: 1 | X3: 0 | Y3: 0 | Z3: 6.24 | AA3: 21.97 | AB3: A
A4: 2 | B4: 84236.92 | C4: 130117.78 | D4: =SUM(B4:C4) -> 214354.7 | J4: 2 | K4: 130117.78 | L4: 210.447 | M4: 5.11 | N4: -4.53 | O4: A | Q4: 2 | R4: 669.53 | S4: 14.417 | T4: 3.15 | U4: 23.44 | W4: 2 | X4: 550.49 | Y4: 5.146 | Z4: 6.54 | AA4: 22.96 | AB4: A
A5: 3 | B5: 100851.35 | C5: 269952.03 | D5: 370803.38 | J5: 3 | K5: 269952.03 | L5: 610.782 | M5: 5.17 | N5: -8.22 | O5: B | Q5: 3 | R5: 624.4 | S5: 14.363 | T5: 2.94 | U5: 21.4 | V5: AB | W5: 3 | X5: 478.32 | Y5: 4.499 | Z5: 6.1 | AA5: 19.71 | AB5: AB
A6: 4 | B6: 83102.11 | C6: 260852.72 | D6: 343954.83 | J6: 4 | K6: 260852.72 | L6: 596.048 | M6: 5.19 | N6: -7.91 | O6: AB | Q6: 4 | R6: 861.31 | S6: 31.785 | T6: 2.62 | U6: 21.5 | V6: AB | W6: 4 | X6: 487.21 | Y6: 4.637 | Z6: 6.13 | AA6: 21.96 | AB6: AB
A7: 5 | B7: 84168.67 | C7: 228004.42 | D7: 312173.09 | J7: 5 | K7: 228004.42 | L7: 462.869 | M7: 5.16 | N7: -8.34 | O7: B | Q7: 5 | R7: 953 | S7: 95.741 | T7: 2.83 | U7: 18.78 | V7: AB | W7: 5 | X7: 501.59 | Y7: 4.779 | Z7: 6.19 | AA7: 18.45 | AB7: AB
A8: 6 | B8: 48128.13 | C8: 201246.08 | D8: 249374.21 | J8: 6 | K8: 201246.08 | L8: 394.205 | M8: 5.14 | N8: -7.37 | Q8: 6 | R8: 780.26 | S8: 23.88 | T8: 2.67 | U8: 19.8 | V8: A | W8: 6 | X8: 573.98 | Y8: 5.493 | Z8: 6.15 | AA8: 18.45 | AB8: A
A9: 7 | B9: 44193.66 | C9: 112271.4 | D9: 156465.06 | J9: 7 | K9: 112271.4 | L9: 129.621 | M9: 5.13 | N9: -4.63 | O9: A | Q9: 7 | R9: 680.32 | S9: 17.21 | T9: 2.77 | U9: 22.4 | W9: 7 | X9: 0 | Y9: 0 | Z9: 6.44 | AA9: 21.68 | AB9: A
A10: 8 | B10: 73267.7 | C10: 88753.39 | D10: 162021.09 | J10: 8 | K10: 88753.39 | L10: 71.815 | M10: 5.2 | N10: -5.29 | O10: A | Q10: 8 | R10: 657.88 | S10: 15.504 | T10: 2.84 | U10: 19.69 | W10: 8 | X10: 258.51 | Y10: 2.462 | Z10: 6.07 | AA10: 16.98 | AB10: A
A11: 9 | B11: 77283.41 | C11: 112060.47 | D11: 189343.88 | J11: 9 | K11: 112060.47 | L11: 120.599 | M11: 5.12 | N11: -6.03 | O11: A | Q11: 9 | R11: 671.63 | S11: 15.252 | T11: 2.99 | U11: 17.9 | W11: 9 | X11: 0 | Y11: 0 | Z11: 6.51 | AA11: 18.21 | AB11: A
A12: 10 | B12: 122818.48 | C12: 195777.34 | D12: 318595.82 | J12: 10 | K12: 195777.34 | L12: 372.819 | M12: 5.11 | N12: -8.68 | O12: B | Q12: 10 | R12: 1239.14 | S12: 87.873 | T12: 2.78 | U12: 11.68 | V12: AB | W12: 10 | X12: 1245.78 | Y12: 11.91 | Z12: 6.06 | AA12: 9.83 | AB12: AB
A13: 11 | B13: 110354.21 | C13: 250672.47 | D13: 361026.68 | J13: 11 | K13: 250672.47 | L13: 593.823 | M13: 5.18 | N13: -8.48 | O13: AB | Q13: 11 | R13: 1348.02 | S13: 80.616 | T13: 2.81 | U13: 13.99 | V13: AB | W13: 11 | X13: 595.75 | Y13: 5.757 | Z13: 6.05 | AA13: 12.05 | AB13: AB
A14: 12 | B14: 78428.81 | C14: 236429.48 | D14: 314858.29 | J14: 12 | K14: 236429.48* | L14: 517.494* | M14: 5.18* | N14: -7.69* | O14: ABC | Q14: 12 | R14: 1552.45 | S14: 115.445 | T14: 2.81 | U14: 15.23 | V14: AB | W14: 12 | X14: 629.64 | Y14: 6.076 | Z14: 6.09 | AA14: 16.53 | AB14: AB
A15: 13 | B15: 46462.86 | C15: 214588.91 | D15: 261051.77 | J15: 13 | K15: 214588.91 | L15: 433.182 | M15: 5.19 | N15: -7.48 | O15: B | Q15: 13 | R15: 1294.3 | S15: 73.143 | T15: 2.83 | U15: 15.37 | V15: AB | W15: 13 | X15: 465.65 | Y15: 4.528 | Z15: 6.29 | AA15: 15.19 | AB15: AB
A16: 14 | B16: 54675.83 | C16: 274029.56 | D16: 328705.39 | J16: 14 | K16: 274029.56 | L16: 698.333 | M16: 5.13 | N16: -8.14 | O16: A | Q16: 14 | R16: 702.69 | S16: 16.405 | T16: 3.03 | U16: 15.14 | W16: 14 | X16: 0 | Y16: 0 | Z16: 6.78 | AA16: 14.16 | AB16: A
A17: 15 | B17: 72419.6 | C17: 290934.59 | D17: 363354.19 | J17: 15 | K17: 290934.59 | L17: 748.072 | M17: 5.13 | N17: -7.88 | O17: AB | Q17: 15 | R17: 3040.81 | S17: 431.856 | T17: 2.8 | U17: 15.27 | V17: AB | W17: 15 | X17: 584.24 | Y17: 5.55 | Z17: 6.09 | AA17: 16.85 | AB17: AB
A18: 16 | B18: 99961.35 | C18: 299694.91 | D18: 399656.26 | J18: 16 | K18: 299694.91 | L18: 794.632 | M18: 5.15 | N18: -7.02 | O18: AB | Q18: 16 | R18: 2471.03 | S18: 295.47 | T18: 2.82 | U18: 18.51 | V18: AB | W18: 16 | X18: 820.15 | Y18: 7.771 | Z18: 6.23 | AA18: 19.31 | AB18: AB
A19: 17 | B19: 121260.34 | C19: 438442.22 | D19: 559702.56 | J19: 17 | K19: 438442.22 | L19: 1648.575 | M19: 5.15 | N19: -8.04 | O19: AB | Q19: 17 | R19: 3272.72 | S19: 451.403 | T19: 2.79 | U19: 14.63 | V19: AB | W19: 17 | X19: 518.1 | Y19: 4.853 | Z19: 6.33 | AA19: 14.27 | AB19: AB
A20: 18 | B20: 109515.7 | C20: 461263.88 | D20: 570779.58 | J20: 18 | K20: 461263.88 | L20: 1742.391 | M20: 5.13 | N20: -8.44 | O20: AB | Q20: 18 | R20: 2844.6 | S20: 358.565 | T20: 2.79 | U20: 11.11 | V20: AB | W20: 18 | X20: 630.55 | Y20: 5.96 | Z20: 6.15 | AA20: 10.14 | AB20: AB
A21: 19 | B21: 94937.05 | C21: 477812.13 | D21: 572749.18 | J21: 19 | K21: 477812.13 | L21: 1862.661 | M21: 5.12 | N21: -8.21 | O21: B | Q21: 19 | R21: 2484.38 | S21: 276.841 | T21: 2.79 | U21: 12.39 | V21: AB | W21: 19 | X21: 756.86 | Y21: 7.31 | Z21: 6.21 | AA21: 10.07 | AB21: AB
A22: 20 | B22: 69770.89 | C22: 435749.03 | D22: 505519.92 | J22: 20 | K22: 435749.03 | L22: 1683.257 | M22: 5.13 | N22: -7.95 | O22: A | Q22: 20 | R22: 1599.58 | S22: 113.631 | T22: 2.81 | U22: 13.12 | V22: A | W22: 20 | X22: 265.45 | Y22: 2.437 | Z22: 6.12 | AA22: 12.97 | AB22: A
A23: 21 | B23: 52520.03 | C23: 290727.75 | D23: 343247.78 | J23: 21 | K23: 290727.75 | L23: 765.036 | M23: 5.08 | N23: -5.78 | O23: A | Q23: 21 | R23: 940.09 | S23: 37.813 | T23: 2.99 | U23: 20.09 | V23: A | W23: 21 | X23: 0 | Y23: 0 | Z23: 6.78 | AA23: 20.18 | AB23: A
A24: 22 | B24: 90360.22 | C24: 390980 | D24: 481340.22 | J24: 22 | K24: 390980 | L24: 1292.266 | M24: 5.1 | N24: -6.82 | O24: AB | Q24: 22 | R24: 2714.65 | S24: 332.831 | T24: 2.78 | U24: 14.38 | V24: AB | W24: 22 | X24: 502.17 | Y24: 4.813 | Z24: 6.4 | AA24: 14.05 | AB24: AB
A25: 23 | B25: 95789.63 | C25: 400603.69 | D25: 496393.32 | J25: 23 | K25: 400603.69 | L25: 1369.053 | M25: 5.05 | N25: -6.11 | O25: AB | Q25: 23 | R25: 1716.21 | S25: 147.22 | T25: 2.81 | U25: 18.68 | V25: AB | W25: 23 | X25: 313.62 | Y25: 3.058 | Z25: 6.12 | AA25: 19.13 | AB25: AB
A26: 24 | B26: 82324.55 | C26: 375155.34 | D26: 457479.89 | J26: 24 | K26: 375155.34 | L26: 1232.752 | M26: 5.07 | N26: -6.11 | O26: AB | Q26: 24 | R26: 1538.99 | S26: 104.452 | T26: 2.81 | U26: 21.05 | V26: AB | W26: 24 | X26: 202.08 | Y26: 1.909 | Z26: 6.08 | AA26: 21.13 | AB26: AB
A27: 25 | B27: 88194.48 | C27: 392992.22 | D27: 481186.7 | J27: 25 | K27: 392992.22 | L27: 1285.337 | M27: 5.22 | N27: -7.22 | O27: AB | Q27: 25 | R27: 1141.93 | S27: 54.301 | T27: 2.83 | U27: 20.96 | V27: AB | W27: 25 | X27: 0 | Y27: 0 | Z27: 6.48 | AA27: 20.38 | AB27: AB
A28: 26 | B28: 100255.43 | C28: 346928.88 | D28: 447184.31 | J28: 26 | K28: 346928.88 | L28: 1060.109 | M28: 5.13 | N28: -7.78 | O28: AB | Q28: 26 | R28: 1230.52 | S28: 60.845 | T28: 2.8 | U28: 22.32 | V28: AB | W28: 26 | X28: 606.97 | Y28: 5.711 | Z28: 6.38 | AA28: 20.66 | AB28: AB
A29: 27 | B29: 80322.12 | C29: 296332.03 | D29: 376654.15 | J29: 27 | K29: 296332.03 | L29: 883.748 | M29: 5.11 | N29: -7.06 | Q29: 27 | R29: 699.34 | S29: 17.125 | T29: 2.94 | U29: 21.37 | W29: 27 | X29: 406.67 | Y29: 3.871 | Z29: 6.24 | AA29: 20.1 | AB29: A
A30: 28 | B30: 60132.11 | C30: 208157.13 | D30: 268289.24 | J30: 28 | K30: 208157.13 | L30: 407.327 | M30: 5.07 | N30: -5.32 | O30: A | Q30: 28 | R30: 961.51 | S30: 40.876 | T30: 2.97 | U30: 23.71 | V30: A | W30: 28 | X30: 0 | Y30: 0 | Z30: 6.6 | AA30: 23.79 | AB30: A
A31: 29 | B31: 99678.43 | C31: 328963.78 | D31: 428642.21 | J31: 29 | K31: 328963.78 | L31: 983.842 | M31: 5.15 | N31: -5.72 | O31: AB | Q31: 29 | R31: 1587.79 | S31: 148.778 | T31: 2.85 | U31: 23.78 | V31: AB | W31: 29 | X31: 0 | Y31: 0 | Z31: 6.93 | AA31: 25.18 | AB31: AB
A32: 30 | B32: 86206.12 | C32: 301549.53 | D32: 387755.65 | J32: 30 | K32: 301549.53 | L32: 842.68 | M32: 5.11 | N32: -4.36 | O32: AB | Q32: 30 | R32: 1278.95 | S32: 74.33 | T32: 2.88 | U32: 25.65 | V32: AB | W32: 30 | X32: 1050.02 | Y32: 9.976 | Z32: 6.13 | AA32: 23.19 | AB32: AB
A33: 31 | B33: 72907.05 | C33: 242642.5 | D33: 315549.55 | J33: 31 | K33: 242642.5 | L33: 581.161 | M33: 5.07 | N33: -2.94 | O33: AB | Q33: 31 | R33: 1092.21 | S33: 49.694 | T33: 2.91 | U33: 27.32 | V33: AB | W33: 31 | X33: 1013.39 | Y33: 9.743 | Z33: 6.4 | AA33: 24.91 | AB33: AB
A34: Итого | B34: 2570225.89* | D34: 0 | J34: Итого | K34: 8649838.61* | L34: 790.445* | M34: 5.13* | N34: -6.79* | O34: ABC | Q34: Итого | R34: 43334.92 | S34: 116.564 | T34: 2.85 | U34: 18.79 | V34: AB | W34: Итого | X34: 13457.2 | Y34: 11.91 | Z34: 6.06 | AA34: 9.83 | AB34: AB
